bitfinex/quotes_ETHUSD_20260202
["timestamp","ask_amount","ask_price","bid_price","bid_amount"]
[1770050597179,0.0011,2378.0,2377.6,0.001]
[1770050601111,12.02861243,2378.0,2377.6,0.001]
[1770050602187,1.05134782,2377.9,2377.6,0.001]
[1770050602579,0.0011,2377.9,2377.6,0.001]
[1770050603081,12.02861243,2377.9,2377.6,0.001]
[1770050603540,13.23147367,2377.9,2376.7,4.20739858]
[1770050604208,12.02751243,2377.7,2376.7,1.05187865]
[1770050604398,1.05139204,2377.8,2376.6,1.94272884]
[1770050604399,12.02751243,2377.5,2376.6,1.94272884]
[1770050604741,12.02751243,2377.5,2376.4,0.001]
[1770050604884,12.02751243,2377.3,2376.4,0.001]
[1770050605202,12.02751243,2377.1,2376.4,0.001]
[1770050605403,0.882,2377.0,2376.4,0.001]
[1770050605585,0.8831,2377.0,2376.9,0.001]
[1770050605917,0.8831,2377.0,2376.4,0.001]
[1770050606113,1.05179014,2376.9,2376.4,0.001]
[1770050606314,1.05179014,2376.9,2376.6,0.001]
[1770050606609,1.93488067,2377.0,2376.6,0.001]
[1770050606810,0.8831,2377.0,2376.6,0.001]
[1770050606981,0.882,2377.0,2376.6,0.001]
[1770050607588,2.34264398,2377.4,2376.6,0.001]
[1770050607788,0.8831,2377.3,2376.6,0.001]
[1770050608783,0.882,2377.3,2376.6,0.001]
[1770050609090,0.882,2377.4,2376.6,0.001]
[1770050610095,0.0011,2377.3,2376.6,0.001]
[1770050610296,13.0802383,2377.3,2376.6,0.001]
[1770050610494,14.8971007,2377.3,2376.6,0.001]
[1770050611881,14.8971007,2377.3,2376.4,0.001]
[1770050611882,14.8960007,2377.3,2376.4,0.001]
[1770050612085,12.02751243,2377.1,2376.4,0.001]
[1770050612285,13.07925832,2377.0,2376.4,0.001]
[1770050612515,0.8831,2376.9,2376.4,0.001]
[1770050613415,0.882,2377.7,2376.4,0.001]
[1770050613818,12.90951243,2377.7,2376.4,0.001]
[1770050614216,12.02751243,2377.2,2376.4,0.001]
[1770050614519,12.90951243,2377.1,2376.4,0.001]
[1770050614684,12.02751243,2376.9,2376.4,0.001]
[1770050616220,13.07934427,2376.9,2376.4,0.001]
[1770050619224,13.07934427,2376.9,2375.7,0.001]
[1770050620314,13.07934427,2376.9,2376.6,0.001]
[1770050620514,13.07934427,2376.9,2375.7,0.001]
[1770050620515,13.07934427,2376.9,2376.4,0.001]
[1770050620712,1.85794643,2376.8,2376.4,0.001]
[1770050620925,0.882,2376.7,2376.4,0.001]
[1770050621314,12.90951243,2376.7,2375.7,0.001]
[1770050623148,1.05192291,2376.6,2375.7,0.001]
[1770050625641,0.882,2376.8,2375.7,8.20808633]
[1770050625840,0.882,2376.8,2375.8,0.97130553]
[1770050626203,0.882,2376.8,2375.8,9.17839186]
[1770050626407,0.882,2377.0,2375.9,8.20708633]
[1770050626640,0.882,2377.0,2375.9,9.71205532]
[1770050627048,0.882,2377.0,2375.9,8.20708633]
[1770050627211,0.882,2377.0,2376.0,1.06833608]
[1770050627822,1.05163237,2377.3,2376.1,1.05214427]
[1770050628147,0.882,2377.2,2376.1,1.05214427]
[1770050628826,13.57208181,2377.2,2376.1,1.05214427]
[1770050629129,13.57208181,2377.2,2376.0,1.05216118]
[1770050629331,12.69008181,2377.0,2376.0,1.05216118]
[1770050630014,12.82821635,2376.8,2375.9,4.20881754]
[1770050630207,13.71021635,2376.7,2375.9,4.20881754]
[1770050631606,0.882,2376.7,2375.9,4.20881754]
[1770050632449,14.76212329,2376.7,2376.2,0.001]
[1770050632655,14.72517342,2376.6,2376.2,0.001]
[1770050633315,12.82821635,2376.6,2376.2,0.001]
[1770050635850,13.88014778,2376.6,2376.2,0.001]
[1770050636145,12.82821635,2376.6,2376.2,0.001]
[1770050636652,13.88013999,2376.6,2376.2,0.001]
[1770050638158,12.82821635,2376.6,2376.2,0.001]
[1770050638370,0.882,2376.7,2376.2,0.001]
[1770050638580,0.0011,2376.8,2376.2,0.001]
[1770050638725,0.0011,2376.8,2376.2,0.67776903]
[1770050638929,0.80443924,2376.9,2376.2,2.18273802]
[1770050639162,0.0011,2377.0,2376.2,2.18273802]
[1770050639834,0.0011,2377.0,2376.3,1.50496899]
[1770050640031,14.76173222,2377.6,2376.7,1.50496899]
[1770050640768,14.76173222,2377.6,2376.8,2.55680338]
[1770050640769,0.882,2377.6,2376.8,2.55680338]
[1770050640956,0.882,2377.6,2376.9,1.50496899]
[1770050641342,14.76173001,2377.6,2376.8,1.05183439]
[1770050641551,14.78281727,2377.6,2376.3,2.25956482]
[1770050641731,12.82821635,2377.2,2376.2,0.001]
[1770050642071,0.02108726,2377.3,2376.0,0.001]
[1770050642072,12.84930361,2377.0,2376.0,0.001]
[1770050642673,12.82821635,2376.6,2376.0,0.001]
[1770050642825,13.71021635,2376.5,2376.0,0.001]
[1770050643682,13.71021635,2376.5,2375.7,0.001]
[1770050643832,12.82821635,2376.3,2375.7,0.001]
[1770050644868,13.88031634,2376.2,2375.7,0.001]
[1770050645078,13.88031634,2376.2,2375.5,0.001]
[1770050645079,13.71021635,2376.1,2375.5,0.001]
[1770050645873,13.71021635,2376.1,2375.4,0.001]
[1770050646101,13.71021635,2376.1,2375.1,0.001]
[1770050646253,12.82821635,2375.9,2375.1,0.001]
[1770050646837,12.82821635,2375.7,2375.1,0.001]
[1770050647073,1.05227712,2375.8,2375.1,0.001]
[1770050647074,13.71021635,2375.6,2375.1,0.001]
[1770050647671,13.71021635,2375.6,2374.7,0.2846292]
[1770050647870,12.82821635,2375.4,2374.7,0.2846292]
[1770050648073,12.82821635,2375.2,2374.7,0.2846292]
[1770050648283,13.71021635,2375.1,2374.7,0.2846292]
[1770050648442,13.71021635,2375.1,2374.2,0.001]
[1770050649196,1.05263157,2375.0,2374.2,0.001]
[1770050650276,13.88084792,2375.0,2374.2,0.001]
[1770050650473,14.72555377,2374.9,2374.2,0.001]
[1770050651082,2.95001916,2374.9,2374.2,0.001]
[1770050651282,1.05268174,2374.9,2374.2,0.001]
[1770050651496,13.88089809,2374.9,2374.2,0.001]
[1770050652262,14.76289809,2374.9,2374.2,0.001]
[1770050655636,13.88089809,2374.9,2374.2,0.001]
[1770050657045,13.88089809,2374.9,2373.9,0.001]
[1770050657233,12.82821635,2374.7,2373.9,0.001]
[1770050657430,12.82821635,2374.5,2373.9,0.001]
[1770050659115,12.82821635,2374.5,2374.4,0.001]
[1770050659431,1.05279284,2374.7,2373.9,0.001]
[1770050659635,1.05275403,2374.8,2373.9,0.001]
[1770050659832,0.883,2374.6,2374.1,0.001]
[1770050660849,13.31819515,2374.6,2374.1,0.001]
[1770050661008,13.76701466,2374.5,2374.1,0.001]
[1770050661535,13.48805462,2374.5,2374.1,0.001]
[1770050662045,12.43519515,2374.5,2374.1,0.001]
[1770050662226,13.48804974,2374.5,2374.1,0.001]
[1770050662725,13.48804974,2374.5,2373.9,0.001]
[1770050662908,13.48804974,2374.5,2373.2,0.001]
[1770050663109,12.43519515,2374.3,2373.2,0.001]
[1770050663454,13.48822577,2374.1,2373.2,0.001]
[1770050664439,13.48822577,2374.1,2372.6,1.10343587]
[1770050664440,12.43519515,2373.4,2372.6,1.10343587]
[1770050664638,0.883,2373.3,2372.6,1.05367275]
[1770050664947,12.43519515,2373.8,2372.6,1.58053463]
[1770050665116,0.883,2373.7,2372.6,1.58053463]
[1770050665311,12.43519515,2373.8,2372.6,1.58053463]
[1770050665517,1.89920339,2374.4,2372.8,7.98214414]
[1770050665745,1.89920339,2374.4,2372.7,0.02108726]
[1770050665746,13.48794907,2374.8,2373.0,8.0032314]
[1770050665939,12.43519515,2375.2,2373.6,8.0032314]
[1770050666250,0.883,2375.3,2373.9,8.0032314]
[1770050667153,12.43519515,2375.6,2374.0,7.98214414]
[1770050667474,13.48760516,2375.5,2374.1,1.05303062]
[1770050669535,13.48760516,2375.5,2373.9,4.21212248]
[1770050669847,12.43519515,2375.3,2374.0,0.61482418]
[1770050670260,0.56928088,2375.2,2374.0,0.61482418]
[1770050670437,13.31819515,2375.1,2374.0,0.61482418]
[1770050671138,13.88747603,2375.1,2374.0,0.61482418]
[1770050671329,0.56928088,2375.0,2374.0,0.61482418]
[1770050671528,1.05263157,2375.0,2374.2,1.05298626]
[1770050671945,13.48782672,2375.0,2374.1,1.53569384]
[1770050672162,14.0571076,2375.0,2374.1,1.53569384]
[1770050672361,13.48782672,2375.0,2374.1,1.53669384]
[1770050672541,1.85922616,2374.9,2374.1,1.53669384]
[1770050673670,2.91191558,2374.9,2374.1,1.53669384]
[1770050674241,15.34711073,2374.9,2374.1,0.001]
[1770050675547,13.34130858,2374.8,2373.3,0.2141547]
[1770050675747,12.43519515,2374.4,2373.3,0.2141547]
[1770050675990,12.43519515,2374.2,2373.3,0.2141547]
[1770050676282,12.43519515,2374.0,2373.3,0.2141547]
[1770050676439,0.61728088,2373.9,2373.3,0.2141547]
[1770050676640,0.883,2373.8,2373.3,0.2141547]
[1770050676876,0.883,2373.8,2373.3,1.26752325]
[1770050677756,1.93598626,2374.2,2373.3,1.26752325]
[1770050677966,1.93598626,2374.2,2373.4,0.54812383]
[1770050678680,0.883,2374.2,2373.4,0.54812383]
[1770050679068,1.05280889,2374.6,2373.4,0.54812383]
[1770050679270,13.48799482,2374.7,2373.4,0.54812383]
[1770050679489,2.65289262,2374.6,2373.4,0.54812383]
[1770050679711,1.85922616,2374.9,2373.4,8.53126797]
[1770050679866,0.0011,2376.1,2374.6,1.50452248]
[1770050680081,0.0011,2376.1,2374.9,1.50452248]
[1770050680265,13.4868968,2377.1,2375.2,1.50452248]
[1770050680462,1.34879968,2377.0,2375.7,1.50452248]
[1770050680666,12.43519515,2377.1,2375.9,1.50452248]
[1770050681396,12.43519515,2377.1,2375.8,0.883]
[1770050681593,12.43519515,2377.1,2375.8,2.38752248]
[1770050681897,13.48693219,2377.1,2375.9,1.05223283]
[1770050682103,13.48693219,2377.1,2376.0,0.61441642]
[1770050682468,13.48693219,2377.1,2375.8,1.9352448]
[1770050683411,13.48690346,2377.1,2375.8,1.9352448]
[1770050684489,12.43519515,2377.1,2375.8,1.9352448]
[1770050684686,13.48689764,2377.1,2375.8,1.9352448]
[1770050685298,12.43519515,2377.1,2375.8,1.9352448]
[1770050685472,12.43519515,2377.1,2375.9,0.61445101]
[1770050685671,13.48691097,2377.1,2375.9,0.61445101]
[1770050685903,13.48691097,2377.1,2376.0,1.05218855]
[1770050686402,0.0011,2376.9,2376.0,1.05218855]
[1770050686769,12.43519515,2376.8,2376.0,1.05218855]
[1770050686983,13.67882466,2376.8,2375.8,1.93526966]
[1770050687196,0.883,2376.7,2375.8,1.05226966]
[1770050687521,12.43519515,2376.6,2375.8,1.05226966]
[1770050687722,12.91109254,2376.6,2375.7,1.05230243]
[1770050688011,12.91109254,2376.6,2375.3,4.20985508]
[1770050688012,13.96302024,2376.6,2375.3,4.20985508]
[1770050688168,12.43519515,2376.4,2375.4,0.53647537]
[1770050689802,1.05205571,2376.3,2375.5,1.05241001]
[1770050690109,12.35830103,2376.4,2375.5,1.05241001]
[1770050690311,14.01492637,2376.3,2375.5,1.05241001]
[1770050690479,14.01492637,2376.3,2375.0,0.883]
[1770050690673,14.01492637,2376.3,2375.4,1.05244948]
[1770050691907,12.35830103,2376.1,2375.1,1.05258725]
[1770050692207,12.35830103,2375.9,2375.0,1.93560779]
[1770050693180,12.89257824,2375.9,2375.0,1.05260779]
[1770050693508,12.89257824,2375.8,2375.0,1.05260779]
[1770050693881,12.35830103,2375.8,2375.0,1.05260779]
[1770050694082,12.35830103,2375.8,2375.0,1.68380659]
[1770050694282,13.41059691,2375.8,2375.0,1.68380659]
[1770050694794,12.35830103,2375.8,2375.0,1.68380659]
[1770050695378,13.41058542,2375.8,2375.0,1.68380659]
[1770050695877,13.41058542,2375.8,2375.0,1.05260779]
[1770050696078,12.35830103,2375.8,2375.0,1.05260779]
[1770050696278,13.41058592,2375.8,2375.0,1.05260779]
[1770050696782,13.41058592,2375.8,2374.9,5.25938019]
[1770050696783,13.41058592,2375.8,2374.9,2.1013748]
[1770050697280,13.94486313,2375.8,2374.9,1.04870239]
[1770050697481,12.35830103,2375.6,2374.9,2.10137812]
[1770050697689,13.24030103,2375.6,2374.9,2.10137812]
[1770050698090,13.24030103,2375.6,2374.9,1.04870239]
[1770050698421,13.77457824,2375.6,2374.9,2.10137519]
[1770050698718,13.24030103,2375.6,2374.9,2.10137519]
[1770050698919,13.24030103,2375.6,2375.1,0.001]
[1770050699215,14.82694759,2375.6,2375.1,0.001]
[1770050699420,13.77457824,2375.6,2375.1,0.001]
[1770050699890,13.24030103,2375.6,2375.1,0.001]
[1770050700594,12.35830103,2376.3,2375.1,0.001]
[1770050700792,14.29238735,2376.3,2375.1,0.001]
[1770050701019,12.35940103,2376.2,2375.1,0.001]
[1770050701219,13.41151085,2376.2,2375.1,0.001]
[1770050701520,15.26178012,2376.2,2375.1,0.001]
[1770050701721,12.35830103,2375.8,2374.9,0.92389975]
[1770050701923,12.35830103,2375.6,2374.9,0.92389975]
[1770050702128,12.37938829,2375.6,2374.1,0.001]
[1770050702429,12.37938829,2375.6,2373.5,8.90264389]
[1770050702430,12.35830103,2374.8,2373.5,1.05326944]
[1770050702725,0.02108726,2375.2,2372.8,13.11898098]
[1770050702726,12.35830103,2374.6,2372.8,13.11898098]
[1770050702919,12.35830103,2374.6,2373.2,1.0534031]
[1770050703088,12.35830103,2374.6,2373.1,4.21389409]
[1770050703089,12.35830103,2374.3,2373.1,1.05343405]
[1770050703284,12.35830103,2374.3,2372.6,1.05366871]
[1770050703285,12.37938829,2374.1,2372.6,1.05366871]
[1770050703488,12.37938829,2374.1,2373.0,1.05350817]
[1770050703707,13.24130103,2374.0,2372.9,1.05353677]
[1770050704015,13.24130103,2374.0,2373.0,1.05351706]
[1770050704217,1.05320807,2373.7,2372.4,4.21507057]
[1770050704417,2.37935871,2373.9,2372.5,8.90464389]
[1770050705911,14.29436294,2374.1,2372.5,18.1083256]
[1770050706121,13.24130103,2374.1,2372.6,8.90464389]
[1770050706428,14.29417613,2374.5,2373.0,1.05351875]
[1770050707012,12.35830103,2374.1,2372.5,1.05371549]
[1770050707323,12.37938829,2373.9,2372.5,1.05371614]
[1770050707526,12.37938829,2373.9,2372.3,1.93579997]
[1770050708010,12.35830103,2373.7,2372.3,4.21530596]
[1770050708192,12.35830103,2373.7,2372.5,1.05374011]
[1770050708393,12.35830103,2373.7,2371.8,1.15645177]
[1770050708394,12.35830103,2373.5,2371.8,1.15645177]
[1770050708594,14.58245638,2373.4,2371.9,1.51603028]
[1770050708895,12.35830103,2373.2,2371.8,1.05405177]
[1770050709426,12.35830103,2373.2,2371.7,1.93706999]
[1770050709930,12.35830103,2373.2,2371.7,1.05406999]
[1770050710442,12.37938829,2373.0,2371.4,4.21689957]
[1770050710597,12.35830103,2372.8,2371.5,0.52711736]
[1770050710799,12.35830103,2372.6,2371.5,0.52711736]
[1770050711092,12.35830103,2372.6,2371.3,1.05427402]
[1770050711296,12.35830103,2372.6,2371.2,1.05429462]
[1770050711492,12.35830103,2372.3,2371.0,1.05438252]
[1770050712023,12.35830103,2372.3,2371.8,0.001]
[1770050712199,12.35830103,2372.3,2371.0,1.05437655]
[1770050712403,13.41221949,2372.1,2370.6,1.05458533]
[1770050712634,12.35830103,2371.9,2370.8,0.001]
[1770050714029,2.29184534,2372.2,2370.8,0.001]
[1770050714329,3.17484534,2372.2,2370.8,0.001]
[1770050714530,1.05369636,2372.6,2370.8,8.90664389]
[1770050714731,1.05369636,2372.6,2371.1,8.90564389]
[1770050714732,0.883,2372.5,2371.1,8.90564389]
[1770050714936,13.24130103,2372.5,2370.8,0.001]
[1770050716109,13.24130103,2372.5,2370.8,8.90664389]
[1770050716308,13.41208622,2372.4,2370.9,1.05445189]
[1770050716629,13.41208622,2372.4,2371.0,1.41789034]
[1770050716630,14.20932373,2372.3,2371.0,1.41789034]
[1770050716807,12.35830103,2372.1,2371.0,1.41789034]
[1770050717013,12.35830103,2372.1,2370.9,1.05445189]
[1770050717218,12.37938829,2372.1,2370.9,1.05445189]
[1770050718111,12.9136655,2372.1,2370.8,0.001]
[1770050718438,0.883,2372.2,2370.5,0.09020693]
[1770050718439,12.35830103,2371.4,2370.5,0.09020693]
[1770050718633,12.35830103,2371.2,2370.5,0.09120693]
[1770050718840,2.1188301,2371.3,2370.5,1.14580366]
[1770050719034,0.883,2371.3,2370.5,1.14580366]
[1770050719206,13.24130103,2371.3,2370.5,0.09120693]
[1770050719400,13.24130103,2371.3,2370.5,1.14582413]
[1770050719605,13.24130103,2371.3,2370.5,0.09120693]
[1770050720449,1.05431848,2371.2,2370.5,0.09120693]
[1770050720636,1.85127568,2371.1,2370.5,0.09120693]
[1770050721146,0.883,2371.3,2370.5,1.14582678]
[1770050721456,1.93727794,2371.3,2370.5,1.14582678]
[1770050721659,13.96209034,2371.3,2370.5,1.14582678]
[1770050721819,13.96209034,2371.3,2370.5,1.14583562]
[1770050722146,13.96209034,2371.3,2370.5,0.09120693]
[1770050722330,13.96209034,2371.3,2370.5,0.09020693]
[1770050722331,1.05440742,2371.0,2370.5,0.09020693]
[1770050722531,13.07921982,2371.0,2370.1,1.0547974]
[1770050722838,13.07921982,2371.0,2370.2,0.001]
[1770050723147,13.07921982,2371.0,2370.2,1.05575427]
[1770050723345,1.05439679,2371.1,2370.4,1.05467307]
[1770050723515,0.884,2371.0,2370.3,1.05470607]
[1770050723948,0.884,2371.0,2370.4,0.001]
[1770050724134,12.9088124,2371.0,2370.4,0.001]
[1770050724440,12.0248124,2370.8,2369.8,4.21969977]
[1770050724648,13.84291959,2370.8,2369.9,0.55632437]
[1770050724858,13.84291959,2370.8,2369.2,0.883]
[1770050724859,13.84291959,2370.8,2369.2,4.22073786]
[1770050725019,13.84291959,2370.8,2369.6,1.055]
[1770050725346,13.84291959,2370.8,2370.3,0.001]
[1770050725515,12.0248124,2370.6,2369.7,1.05498423]
[1770050725844,12.0248124,2370.4,2369.7,1.05498423]
[1770050726014,0.884,2370.5,2370.0,0.001]
[1770050726416,12.9088124,2370.5,2370.0,0.001]
[1770050726615,0.884,2370.5,2370.0,0.001]
[1770050726846,0.884,2370.5,2369.1,0.001]
[1770050726847,12.04589966,2370.4,2369.1,0.001]
[1770050727046,12.0248124,2370.4,2369.1,0.001]
[1770050727244,12.0248124,2370.4,2369.1,4.22201004]
[1770050728648,1.22683085,2370.5,2369.3,0.02108726]
[1770050728885,1.93863273,2370.5,2369.3,9.01793808]
[1770050729056,0.0011,2371.1,2369.5,8.99685082]
[1770050729229,0.0011,2371.1,2369.8,9.22476897]
[1770050729430,1.05547121,2371.1,2369.8,9.20368171]
[1770050729629,13.08028361,2371.1,2369.5,8.99685082]
[1770050729944,13.8429828,2371.0,2369.6,0.98808508]
[1770050730139,13.8429828,2371.0,2369.4,0.884]
[1770050730338,14.95214136,2371.0,2369.1,0.001]
[1770050730543,12.0248124,2370.6,2369.1,0.001]
[1770050730743,12.0248124,2370.4,2369.1,0.001]
[1770050731078,12.0248124,2370.4,2368.9,4.22101219]
[1770050731079,12.0248124,2369.8,2368.8,0.3324892]
[1770050731233,0.2335703,2370.0,2368.1,1.0556706]
[1770050731234,12.0248124,2369.4,2368.1,1.0556706]
[1770050731554,12.0248124,2368.8,2367.3,1.05601374]
[1770050731858,12.0248124,2368.6,2367.3,1.05601374]
[1770050732059,12.0248124,2369.0,2367.4,0.52802354]
[1770050732218,0.884,2368.9,2367.4,0.52802354]
[1770050732629,12.0248124,2369.4,2367.7,0.02108726]
[1770050732835,12.9088124,2369.3,2367.5,1.0559662]
[1770050733031,12.0248124,2369.1,2367.6,0.58078546]
[1770050733229,12.0248124,2368.8,2367.3,4.22421461]
[1770050733449,0.02108726,2368.9,2367.2,1.0560732]
[1770050733450,12.04589966,2368.6,2367.2,1.0560732]
[1770050733649,12.0248124,2368.2,2366.5,4.22563997]
[1770050733847,12.0248124,2368.2,2366.3,0.884]
[1770050733848,0.884,2368.1,2367.3,1.05605376]
[1770050734160,0.884,2368.1,2366.4,4.22580008]
[1770050734161,12.0248124,2368.0,2366.4,4.22580008]
[1770050734331,12.0248124,2368.0,2366.5,1.05640944]
[1770050734332,12.0248124,2367.8,2366.5,1.05640944]
[1770050734535,13.0807786,2367.5,2366.0,4.2264849]
[1770050734730,2.61446197,2367.4,2366.1,0.45139187]
[1770050734930,0.884,2367.4,2366.1,0.45139187]
[1770050735144,12.0248124,2367.9,2366.4,8.99685082]
[1770050735145,0.884,2367.9,2366.4,8.99685082]
[1770050735553,1.93979394,2367.9,2366.1,1.33539187]
[1770050735763,0.884,2367.9,2366.2,0.1024]
[1770050735946,1.0555015,2368.6,2366.8,8.99685082]
[1770050736146,0.885,2368.4,2366.9,1.82005325]
[1770050736544,0.50594035,2368.5,2366.9,1.82005325]
[1770050736545,1.39094035,2368.5,2366.9,1.82005325]
[1770050736742,2.44648264,2368.5,2367.0,1.05618926]
[1770050737164,13.96510999,2369.0,2367.1,9.20368171]
[1770050737476,13.96510999,2369.0,2367.0,1.94118926]
[1770050738174,13.08010999,2369.0,2367.3,0.02108726]
[1770050738372,0.885,2368.9,2367.3,0.02108726]
[1770050738539,0.885,2368.9,2367.2,0.02108726]
[1770050738745,1.05538669,2368.8,2367.3,1.05605542]
[1770050739173,1.94037065,2368.9,2367.3,1.05605542]
[1770050739379,13.98627031,2368.9,2367.2,2.16224919]
[1770050739572,12.0248124,2368.7,2367.2,1.05609646]
[1770050740879,1.0554758,2368.6,2366.9,4.22440013]
[1770050741047,13.0802882,2368.6,2366.9,4.22440013]
[1770050741448,12.0248124,2368.4,2366.9,4.22440013]
[1770050741680,1.20248124,2368.3,2367.0,0.84488003]
[1770050741883,0.885,2368.2,2367.0,0.84488003]
[1770050742455,1.0554758,2368.6,2367.0,0.84488003]
[1770050742646,13.96520188,2368.8,2367.0,9.84173085]
[1770050742846,13.96520188,2368.8,2367.1,1.05614464]
[1770050743154,12.0248124,2368.6,2367.2,0.61256033]
[1770050744067,1.05527531,2369.1,2367.4,0.02108726]
[1770050744247,12.0248124,2369.7,2367.6,8.99685082]
[1770050744447,12.9098124,2369.5,2367.7,9.92786316]
[1770050744846,12.9098124,2369.5,2367.8,10.05268323]
[1770050744847,13.96489368,2369.5,2367.8,10.05268323]
[1770050745047,13.07989368,2369.5,2367.8,10.05268323]
[1770050745267,12.0248124,2369.5,2367.8,10.05268323]
[1770050745776,12.0248124,2369.5,2367.9,0.885]
[1770050745978,13.58374198,2369.5,2368.0,1.09376832]
[1770050746651,4.21861803,2370.5,2368.1,9.12033808]
[1770050746652,1.0547876,2370.2,2368.1,9.12033808]
[1770050746864,17.53469887,2370.3,2368.1,9.12033808]
[1770050746865,14.37043347,2370.3,2368.3,9.09925082]
[1770050747058,14.37041575,2370.3,2368.3,9.09925082]
[1770050747580,12.0248124,2370.1,2368.3,0.1024]
[1770050748045,12.0248124,2370.1,2368.2,1.05565408]
[1770050748249,12.0248124,2369.9,2368.3,0.52782704]
[1770050748451,12.81897417,2369.8,2368.3,0.52782704]
[1770050748887,12.98904908,2369.5,2368.4,1.05556493]
[1770050749184,1.05505754,2369.6,2368.4,1.05556493]
[1770050749980,1.05505754,2369.6,2368.9,0.003]
[1770050750183,14.46799223,2369.6,2368.9,0.003]
[1770050751358,14.46799223,2369.6,2368.4,1.05556493]
[1770050752879,14.46799223,2369.6,2368.3,1.05560016]
[1770050753080,15.05068978,2369.6,2368.3,1.05560016]
[1770050753398,12.79693075,2369.4,2368.3,1.05560016]
[1770050753600,13.33120796,2369.4,2368.3,1.05560016]
[1770050753947,12.79693075,2369.4,2368.3,1.05560016]
[1770050754076,1.27969308,2369.3,2368.3,1.58343154]
[1770050754280,12.79693075,2369.4,2368.3,1.58343154]
[1770050754964,1.05516397,2369.3,2368.3,1.58343154]
[1770050756659,12.79693075,2369.1,2368.0,1.09376832]
[1770050756892,12.79693075,2369.1,2368.1,1.05568018]
[1770050757093,1.05529759,2369.0,2367.8,1.05583241]
[1770050757272,13.85222834,2369.0,2367.8,1.05583241]
[1770050759795,14.38650555,2369.0,2367.8,1.05583241]
[1770050760006,12.79693075,2368.8,2367.8,2.24708751]
[1770050761215,12.79693075,2368.8,2367.3,1.49977822]
[1770050761216,13.85236199,2368.7,2367.3,1.49977822]
[1770050761377,12.79693075,2368.5,2367.6,1.05589538]
[1770050761699,12.79693075,2368.5,2367.7,1.05587219]
[1770050762102,12.79693075,2368.5,2367.1,0.84351918]
[1770050762307,12.79693075,2368.3,2366.9,1.05619507]
[1770050762474,12.79693075,2368.3,2366.6,6.48602206]
[1770050762475,12.79693075,2368.3,2367.0,1.05618761]
[1770050762871,12.79693075,2368.1,2366.7,1.05630095]
[1770050763076,12.79693075,2368.1,2366.6,4.22641811]
[1770050763077,12.79693075,2367.7,2366.6,0.001]
[1770050763278,12.79693075,2367.5,2366.6,0.001]
[1770050763485,12.79693075,2367.3,2366.6,0.001]
[1770050764105,0.885,2367.4,2366.6,0.001]
[1770050764405,13.68193075,2367.7,2366.6,0.001]
[1770050765179,14.73781996,2367.7,2366.6,0.001]
[1770050765397,12.79693075,2367.6,2366.6,0.001]
[1770050765599,3.8370159,2367.7,2366.6,0.001]
[1770050765600,0.885,2367.7,2366.6,0.001]
[1770050765800,14.73781708,2367.7,2366.6,0.001]
[1770050766717,0.885,2367.7,2366.6,0.001]
[1770050766914,14.73781435,2367.7,2366.6,0.001]
[1770050767100,14.69305644,2367.6,2366.6,0.001]
[1770050767283,15.74900743,2367.6,2366.6,0.001]
[1770050767700,12.79693075,2367.5,2366.6,0.001]
[1770050767910,12.79693075,2366.5,2365.4,1.509468]
[1770050768118,0.02108726,2366.6,2364.8,1.05717076]
[1770050768119,12.79693075,2366.0,2364.8,1.05717076]
[1770050768390,12.79693075,2365.3,2364.2,1.05744014]
[1770050768592,0.02108726,2365.1,2364.0,1.05751064]
[1770050768808,0.02108726,2365.1,2363.5,4.23090151]
[1770050768809,12.81801801,2365.1,2363.5,4.23090151]
[1770050769015,12.81801801,2365.1,2362.8,2.11156281]
[1770050769016,13.92164045,2364.9,2362.9,12.90560054]
[1770050769184,1.05742287,2364.3,2362.6,1.05815626]
[1770050769381,0.885,2364.4,2363.0,12.9266878]
[1770050769694,0.885,2364.7,2363.1,0.1024]
[1770050770027,13.68193075,2364.7,2363.1,1.30290878]
[1770050770185,12.79693075,2364.9,2363.1,14.20850932]
[1770050770513,0.885,2364.9,2363.2,12.9266878]
[1770050770717,12.79693075,2365.1,2363.2,12.90560054]
[1770050770718,0.885,2364.8,2363.2,12.90560054]
[1770050770893,0.885,2364.8,2363.1,1.30290878]
[1770050771211,1.05721656,2364.7,2363.1,13.96353291]
[1770050771618,1.05721656,2364.7,2363.1,1.05793237]
[1770050771823,12.79693075,2364.5,2363.0,1.05797196]
[1770050772185,1.05721656,2364.7,2363.0,1.05797196]
[1770050772416,0.886,2364.5,2363.0,1.05797196]
[1770050772621,13.68293075,2364.5,2362.6,12.90560054]
[1770050772830,14.16033309,2364.5,2363.0,1.05796153]
[1770050773127,0.02108726,2364.0,2363.0,1.05796857]
[1770050773296,0.02108726,2364.0,2362.5,4.23276706]
[1770050773297,1.07864864,2364.0,2362.5,4.23276706]
[1770050773502,4.23011093,2364.1,2362.5,4.23276706]
[1770050773503,1.05750972,2364.1,2362.6,12.90560054]
[1770050773734,1.05730598,2364.5,2362.8,12.90560054]
[1770050773955,1.05721656,2364.7,2362.8,12.90560054]
[1770050774109,0.02108726,2364.3,2362.7,1.71383676]
[1770050774307,0.02108726,2364.2,2362.7,1.71383676]
[1770050774825,0.02108726,2363.9,2362.5,4.23276706]
[1770050775031,0.02108726,2363.6,2362.5,4.23276706]
[1770050775330,0.02108726,2363.6,2361.8,0.1024]
[1770050775331,0.02108726,2363.1,2362.2,1.05833545]
[1770050775498,13.70401801,2363.5,2362.2,1.05833545]
[1770050775499,0.886,2363.4,2362.2,1.05833545]
[1770050775701,1.36829308,2363.3,2362.2,1.05833545]
[1770050776320,0.886,2363.4,2362.2,1.05833545]
[1770050776520,1.05759589,2363.9,2362.2,13.96393599]
[1770050776712,13.85449126,2364.0,2362.2,13.96393599]
[1770050777131,13.85449126,2364.0,2362.2,1.05833545]
[1770050777551,12.79693075,2363.8,2362.1,1.05837774]
[1770050777846,12.79693075,2363.6,2361.9,4.23384734]
[1770050778001,12.79693075,2363.6,2362.1,1.05837195]
[1770050778198,0.02108726,2362.2,2361.4,0.22055269]
[1770050778404,0.02108726,2362.2,2360.7,0.09020693]
[1770050778405,0.02108726,2361.5,2360.7,0.09020693]
[1770050778601,0.02108726,2361.5,2359.3,2.29948024]
[1770050778602,0.2206,2361.2,2359.3,15.20508078]
[1770050778801,0.2206,2361.2,2359.6,12.90560054]
[1770050779008,0.2206,2361.2,2360.9,1.05890665]
[1770050779009,0.09942367,2361.2,2360.9,1.05890665]
[1770050779219,12.79693075,2362.5,2360.7,4.23567283]